fUST/lending_fUST_20250318
["ID","MTS","AMOUNT","RATE_DAILY","PERIOD"]
[356345152,1742309447873,-2029.94,0.00014246,2]
[356345153,1742309447883,-913.8,0.00014246,2]
[356345154,1742309447893,-1012.6267116,0.00014247,2]
[356345155,1742309447903,-500.0,0.000143,2]
[356345156,1742309447914,-1018.213625,0.00014364,2]
[356345157,1742309447924,-1000.0,0.00014364,2]
[356345158,1742309447935,-1000.0,0.00014364,2]
[356345159,1742309447945,-1000.0,0.00014393,2]
[356345160,1742309447955,-1000.0,0.00014393,2]
[356345161,1742309447965,-500.0,0.000144,2]
[356345162,1742309447975,-1001.5893261,0.000145,2]
[356345163,1742309447985,-1000.0,0.000145,2]
[356345164,1742309447995,-500.0,0.000145,2]
[356345165,1742309448004,-391.26874778,0.0001452,2]
[356345166,1742309448060,-67.78547998,0.0001452,2]
[356345167,1742309448072,-40.94577224,0.0001452,2]
[356345168,1742309448083,-811.56934897,0.0001452,2]
[356345169,1742309448094,-2030.11547778,0.0001452,2]
[356345170,1742309448105,-913.99121598,0.0001452,2]
[356345171,1742309448116,-1500.0,0.00014548,2]
[356345172,1742309448126,-1000.0,0.00014549,2]
[356345173,1742309448137,-1000.0,0.00014549,2]
[356345174,1742309448147,-1000.0,0.00014549,2]
[356345175,1742309448158,-1000.0,0.00014549,2]
[356345176,1742309448168,-1000.0,0.00014549,2]
[356345177,1742309448178,-155.59587806,0.00014549,2]
[356345189,1742310258730,362.39687534,0.00014,30]
[356345191,1742310341134,-256.66541453,8.106e-05,2]
[356345228,1742310632169,-291.25329077,8.106e-05,2]
[356345229,1742310632179,-204.960965,8.2e-05,2]
[356345230,1742310632189,-506.26071742,8.219e-05,2]
[356345231,1742310632199,-500.0,8.219e-05,2]
[356345232,1742310632209,-500.0,8.219e-05,2]
[356345233,1742310632219,-500.0,8.219e-05,2]
[356345234,1742310632229,-500.0,8.219e-05,2]
[356345235,1742310632239,-500.0,8.219e-05,2]
[356345236,1742310632250,-500.0,8.219e-05,2]
[356345237,1742310632260,-500.0,8.219e-05,2]
[356345238,1742310632270,-397.73980935,8.219e-05,2]
[356345239,1742310632280,-500.0,8.493e-05,2]
[356345240,1742310632289,-500.0,8.493e-05,2]
[356345241,1742310632299,-500.0,8.493e-05,2]
[356345242,1742310632309,-500.0,8.767e-05,2]
[356345243,1742310632318,-500.0,8.767e-05,2]
[356345244,1742310632328,-500.0,8.999e-05,2]
[356345245,1742310632338,-535.49775767,8.999e-05,2]
[356345246,1742310632347,-500.0,8.999e-05,2]
[356345247,1742310632357,-500.0,8.999e-05,2]
[356345248,1742310632367,-450.69120001,8.999e-05,2]
[356345249,1742310632377,-500.0,8.999e-05,2]
[356345250,1742310632387,-506.20107156,8.999e-05,2]
[356345251,1742310632397,-474.79120001,8.999e-05,2]
[356345252,1742310632407,-500.0,8.999e-05,2]
[356345253,1742310632417,-4230.53398821,9e-05,2]
[356345288,1742310638106,-503.73419214,9e-05,2]
[356345299,1742310640393,-1443.22378953,9e-05,2]
[356345320,1742310643310,-302.0,9e-05,2]
[356345321,1742310643360,-4297.7195645,9e-05,2]
[356345325,1742310646292,-500.0,8.219e-05,2]
[356345326,1742310646303,-1775.67100936,9e-05,2]
[356345341,1742311609143,-177.10636203,7.794e-05,2]
[356345342,1742311644090,-300.0,7.871e-05,2]
[356345343,1742311644113,-1759.80284442,7.872e-05,2]
[356345347,1742311749101,-3054.7669791,7.872e-05,2]
[356345348,1742311752134,-16907.55522314,7.872e-05,2]
[356345353,1742311761085,-411.6,7.872e-05,2]
[356345478,1742311838649,-43.36811664,7.872e-05,2]
[356345479,1742311838665,-300.0,8.218e-05,2]
[356345480,1742311838678,-130.69158542,8.219e-05,2]
[356345481,1742311838690,-531.52441458,8.219e-05,2]
[356345482,1742311838700,-500.0,8.219e-05,2]
[356345483,1742311838710,-500.0,8.219e-05,2]
[356345484,1742311838720,-500.0,8.219e-05,2]
[356345485,1742311838730,-500.0,8.219e-05,2]
[356345486,1742311838739,-500.0,8.219e-05,2]
[356345487,1742311838749,-500.0,8.219e-05,2]
[356345488,1742311838760,-500.0,8.219e-05,2]
[356345489,1742311838771,-500.0,8.219e-05,2]
[356345490,1742311838780,-500.0,8.219e-05,2]
[356345491,1742311838790,-500.0,8.219e-05,2]
[356345492,1742311838800,-500.0,8.219e-05,2]
[356345493,1742311838811,-500.0,8.219e-05,2]
[356345494,1742311838821,-500.0,8.219e-05,2]
[356345495,1742311838833,-500.0,8.219e-05,2]
[356345496,1742311838842,-500.0,8.219e-05,2]
[356345497,1742311838852,-500.0,8.219e-05,2]
[356345498,1742311838862,-500.0,8.219e-05,2]
[356345499,1742311838871,-509.17094978,8.219e-05,2]
[356345500,1742311838881,-500.0,8.219e-05,2]
[356345501,1742311838890,-500.0,8.219e-05,2]
[356345502,1742311838900,-500.0,8.219e-05,2]
[356345503,1742311838910,-500.0,8.219e-05,2]
[356345504,1742311838920,-500.0,8.219e-05,2]
[356345505,1742311838930,-500.0,8.219e-05,2]
[356345506,1742311838940,-500.0,8.219e-05,2]
[356345507,1742311838950,-500.0,8.219e-05,2]
[356345508,1742311838960,-500.0,8.219e-05,2]
[356345509,1742311838969,-500.0,8.219e-05,2]
[356345510,1742311838980,-500.0,8.219e-05,2]
[356345511,1742311838991,-500.0,8.219e-05,2]
[356345512,1742311839001,-1120.71477575,8.4e-05,2]
[356345513,1742311839011,-500.0,8.492e-05,2]
[356345514,1742311839020,-500.0,8.492e-05,2]
[356345515,1742311839030,-460.40926235,8.492e-05,2]
[356345516,1742311839039,-500.0,8.493e-05,2]
[356345517,1742311839052,-477.32707996,8.493e-05,2]
[356345518,1742311839178,-22.67292004,8.493e-05,2]
[356345519,1742311839189,-403.43,8.493e-05,2]
[356345520,1742311839203,-492.88729043,8.493e-05,2]
[356345521,1742311839215,-7.11270957,8.493e-05,2]
[356345522,1742311839224,-316.73,8.493e-05,2]
[356345523,1742311839233,-419.75548054,8.493e-05,2]
[356345527,1742311840521,-500.0,8.219e-05,2]
[356345528,1742311840531,-80.24451946,8.493e-05,2]
[356345529,1742311840540,-153.26,8.493e-05,2]
[356345530,1742311840550,-500.0,8.493e-05,2]
[356345531,1742311840559,-183.81507802,8.493e-05,2]
[356345532,1742311840569,-500.0,8.493e-05,2]
[356345533,1742311840578,-500.0,8.493e-05,2]
[356345534,1742311840588,-500.0,8.493e-05,2]
[356345535,1742311840597,-500.0,8.767e-05,2]
[356345536,1742311840607,-99.37387647,8.767e-05,2]
[356345568,1742311843533,-400.62612353,8.767e-05,2]
[356345569,1742311843544,-500.0,8.767e-05,2]
[356345570,1742311843553,-216.4,8.767e-05,2]
[356345571,1742311843563,-500.0,8.767e-05,2]
[356345572,1742311843573,-211.14,8.767e-05,2]
[356345573,1742311843583,-500.0,8.898e-05,2]
[356345574,1742311843593,-162.57494799,8.898e-05,2]
[356345575,1742311843603,-500.0,8.898e-05,2]
[356345576,1742311843612,-500.0,8.898e-05,2]
[356345577,1742311843622,-500.0,8.898e-05,2]
[356345578,1742311843631,-500.0,8.898e-05,2]
[356345579,1742311843641,-500.0,8.898e-05,2]
[356345580,1742311843651,-14680.48486296,8.899e-05,2]
[356345581,1742311843660,-56583.79853232,8.899e-05,2]
[356345582,1742311843670,-387.14274365,8.899e-05,2]
[356345583,1742311843681,-572.03345766,8.899e-05,2]
[356345584,1742311843691,-500.0,8.899e-05,2]
[356345585,1742311843702,-500.0,8.899e-05,2]
[356345586,1742311843711,-500.0,8.899e-05,2]
[356345587,1742311843720,-500.0,8.899e-05,2]
[356345588,1742311843729,-500.0,8.899e-05,2]
[356345589,1742311843739,-500.0,8.899e-05,2]
[356345590,1742311843748,-500.0,8.899e-05,2]
[356345591,1742311843758,-234.36637641,8.899e-05,2]
[356345592,1742311843768,-500.0,8.899e-05,2]
[356345593,1742311843777,-500.0,8.899e-05,2]
[356345594,1742311843787,-500.0,8.899e-05,2]
[356345595,1742311843796,-500.0,8.899e-05,2]
[356345596,1742311843806,-659.57,8.899e-05,2]
[356345597,1742311843816,-103.90402589,8.899e-05,2]
[356345598,1742311843830,-396.09597411,8.899e-05,2]
[356345599,1742311843840,-500.0,8.899e-05,2]
[356345600,1742311843850,-500.0,8.899e-05,2]
[356345601,1742311843860,-508.94224261,8.899e-05,2]
[356345602,1742311843870,-500.0,8.899e-05,2]
[356345603,1742311843880,-617.35,8.899e-05,2]
[356345604,1742311843890,-500.0,8.899e-05,2]
[356345605,1742311843900,-500.0,8.899e-05,2]
[356345606,1742311843909,-500.0,8.899e-05,2]
[356345607,1742311843919,-508.92757227,8.899e-05,2]
[356345608,1742311843930,-500.0,8.899e-05,2]
[356345609,1742311843940,-500.0,8.899e-05,2]
[356345610,1742311843949,-500.0,8.899e-05,2]
[356345611,1742311843959,-500.0,8.899e-05,2]
[356345612,1742311843969,-500.0,8.899e-05,2]
[356345613,1742311843979,-500.0,8.899e-05,2]
[356345614,1742311843988,-500.0,8.899e-05,2]
[356345615,1742311843998,-656.44,8.899e-05,2]
[356345616,1742311844008,-541.99496848,8.899e-05,2]
[356345617,1742311844018,-10408.12032267,8.9e-05,2]
[356345618,1742311844033,-16871.05236759,8.9e-05,2]
[356345619,1742311844043,-500.0,8.973e-05,2]
[356345620,1742311844056,-500.0,8.973e-05,2]
[356345621,1742311844066,-500.82198181,8.973e-05,2]
[356345622,1742311844075,-500.0,8.973e-05,2]
[356345623,1742311844085,-500.0,8.973e-05,2]
[356345624,1742311844095,-500.0,8.973e-05,2]
[356345625,1742311844105,-500.0,8.973e-05,2]
[356345626,1742311844115,-501.27003679,8.973e-05,2]
[356345627,1742311844125,-500.0,8.973e-05,2]
[356345628,1742311844135,-500.0,8.973e-05,2]
[356345629,1742311844147,-500.0,8.973e-05,2]
[356345630,1742311844156,-511.25562868,8.973e-05,2]
[356345631,1742311844166,-500.0,8.973e-05,2]
[356345632,1742311844175,-500.0,8.973e-05,2]
[356345633,1742311844185,-500.0,8.973e-05,2]
[356345634,1742311844195,-500.0,8.973e-05,2]
[356345635,1742311844205,-500.0,8.973e-05,2]
[356345636,1742311844215,-600.0,8.994e-05,2]
[356345637,1742311844225,-500.0,8.997e-05,2]
[356345638,1742311844236,-500.0,8.998e-05,2]
[356345639,1742311844246,-282.8016995,8.998e-05,2]
[356345640,1742311844255,-595.71,8.998e-05,2]
[356345641,1742311844266,-500.0,8.998e-05,2]
[356345642,1742311844275,-500.0,8.998e-05,2]
[356345643,1742311844286,-507.60684651,8.998e-05,2]
[356345644,1742311844296,-500.0,8.998e-05,2]
[356345645,1742311844306,-500.0,8.998e-05,2]
[356345646,1742311844316,-507.27148912,8.998e-05,2]
[356345647,1742311844326,-500.0,8.998e-05,2]
[356345648,1742311844336,-500.0,8.998e-05,2]
[356345649,1742311844346,-500.0,8.998e-05,2]
[356345650,1742311844356,-181.69634052,8.998e-05,2]
[356345651,1742311844366,-500.0,8.998e-05,2]
[356345652,1742311844376,-387.08221043,8.998e-05,2]
[356345653,1742311844385,-500.0,8.998e-05,2]
[356345654,1742311844395,-500.0,8.998e-05,2]
[356345655,1742311844405,-500.0,8.998e-05,2]
[356345656,1742311844416,-500.0,8.998e-05,2]
[356345657,1742311844426,-508.30604702,8.998e-05,2]
[356345658,1742311844436,-500.0,8.998e-05,2]
[356345659,1742311844446,-500.0,8.998e-05,2]
[356345660,1742311844456,-500.0,8.998e-05,2]
[356345661,1742311844465,-500.0,8.998e-05,2]
[356345662,1742311844475,-500.0,8.998e-05,2]
[356345663,1742311844485,-510.92194778,8.998e-05,2]
[356345664,1742311844494,-500.0,8.998e-05,2]
[356345665,1742311844503,-500.0,8.998e-05,2]
[356345666,1742311844513,-500.0,8.998e-05,2]
[356345667,1742311844523,-500.0,8.998e-05,2]
[356345668,1742311844532,-500.0,8.998e-05,2]
[356345669,1742311844541,-500.0,8.998e-05,2]
[356345670,1742311844551,-500.0,8.998e-05,2]
[356345671,1742311844560,-500.0,8.998e-05,2]
[356345672,1742311844570,-500.0,8.998e-05,2]
[356345673,1742311844580,-500.0,8.998e-05,2]
[356345674,1742311844589,-500.0,8.998e-05,2]
[356345675,1742311844599,-500.0,8.998e-05,2]
[356345676,1742311844609,-500.0,8.998e-05,2]
[356345677,1742311844619,-500.0,8.998e-05,2]
[356345678,1742311844628,-500.0,8.998e-05,2]
[356345679,1742311844638,-500.0,8.998e-05,2]
[356345680,1742311844648,-500.0,8.998e-05,2]
[356345681,1742311844657,-500.0,8.998e-05,2]
[356345682,1742311844666,-500.0,8.998e-05,2]
[356345683,1742311844676,-500.0,8.998e-05,2]
[356345684,1742311844687,-500.0,8.998e-05,2]
[356345685,1742311844697,-500.0,8.998e-05,2]
[356345686,1742311844707,-249.05,8.998e-05,2]
[356345687,1742311844717,-500.0,8.998e-05,2]
[356345688,1742311844727,-500.0,8.998e-05,2]
[356345689,1742311844736,-510.20801747,8.998e-05,2]
[356345690,1742311844746,-508.48975147,8.998e-05,2]
[356345691,1742311844756,-272.74136675,8.998e-05,2]
[356345692,1742311844766,-500.0,8.998e-05,2]
[356345693,1742311844776,-500.0,8.998e-05,2]
[356345694,1742311844785,-500.0,8.998e-05,2]
[356345695,1742311844795,-505.20632727,8.998e-05,2]
[356345696,1742311844805,-5355.73,8.998e-05,2]
[356345697,1742311844815,-515.80500906,8.998e-05,2]
[356345698,1742311844825,-502.39149852,8.998e-05,2]
[356345699,1742311844834,-509.77819247,8.998e-05,2]
[356345700,1742311844844,-500.0,8.998e-05,2]
[356345701,1742311844854,-507.21359382,8.998e-05,2]
[356345702,1742311844863,-500.0,8.998e-05,2]
[356345703,1742311844874,-500.0,8.998e-05,2]
[356345704,1742311844884,-500.0,8.998e-05,2]
[356345705,1742311844894,-500.0,8.998e-05,2]
[356345706,1742311844904,-500.0,8.998e-05,2]
[356345707,1742311844913,-500.0,8.998e-05,2]
[356345708,1742311844923,-245.91447272,8.998e-05,2]
[356345709,1742311844933,-500.0,8.998e-05,2]
[356345710,1742311844943,-500.0,8.998e-05,2]
[356345711,1742311844952,-500.0,8.998e-05,2]
[356345712,1742311844962,-500.0,8.999e-05,2]
[356345713,1742311844972,-536.02296281,8.999e-05,2]
[356345714,1742311844982,-500.0,8.999e-05,2]
[356345715,1742311844991,-500.0,8.999e-05,2]
[356345716,1742311845001,-500.0,8.999e-05,2]
[356345717,1742311845011,-500.0,8.999e-05,2]
[356345718,1742311845020,-505.22836091,8.999e-05,2]
[356345719,1742311845030,-500.0,8.999e-05,2]
[356345720,1742311845040,-506.54013844,8.999e-05,2]
[356345721,1742311845056,-507.26720121,8.999e-05,2]
[356345722,1742311845070,-510.32627174,8.999e-05,2]
[356345723,1742311845080,-500.0,8.999e-05,2]
[356345724,1742311845092,-290.49381172,8.999e-05,2]
[356345725,1742311845103,-587.37,8.999e-05,2]
[356345726,1742311845113,-500.0,8.999e-05,2]
[356345727,1742311845122,-500.0,8.999e-05,2]
[356345728,1742311845132,-500.0,8.999e-05,2]
[356345729,1742311845142,-500.0,8.999e-05,2]
[356345730,1742311845151,-500.0,8.999e-05,2]
[356345731,1742311845161,-590.2,8.999e-05,2]
[356345732,1742311845171,-500.0,8.999e-05,2]
[356345733,1742311845182,-500.0,8.999e-05,2]
[356345734,1742311845192,-500.0,8.999e-05,2]
[356345735,1742311845201,-500.0,8.999e-05,2]
[356345736,1742311845211,-622.09,8.999e-05,2]
[356345737,1742311845220,-500.0,8.999e-05,2]
[356345738,1742311845231,-500.0,8.999e-05,2]
[356345739,1742311845240,-500.0,8.999e-05,2]
[356345740,1742311845250,-500.0,8.999e-05,2]
[356345741,1742311845260,-603.87,8.999e-05,2]
[356345742,1742311845270,-605.42802769,8.999e-05,2]
[356345743,1742311845279,-530.2458399,8.999e-05,2]
[356345744,1742311845289,-500.0,8.999e-05,2]
[356345745,1742311845299,-500.0,8.999e-05,2]
[356345746,1742311845309,-500.0,8.999e-05,2]
[356345747,1742311845319,-27.18497909,8.999e-05,2]
[356345752,1742311846388,-500.0,8.898e-05,2]
[356345753,1742311846399,-472.81502091,8.999e-05,2]
[356345755,1742311846409,-500.0,8.999e-05,2]
[356345757,1742311846419,-577.56,8.999e-05,2]
[356345758,1742311846431,-500.0,8.999e-05,2]
[356345759,1742311846441,-500.0,8.999e-05,2]
[356345760,1742311846450,-500.0,8.999e-05,2]
[356345761,1742311846460,-500.0,8.999e-05,2]
[356345762,1742311846470,-516.13936942,8.999e-05,2]
[356345763,1742311846480,-500.0,8.999e-05,2]
[356345764,1742311846489,-14.17680968,8.999e-05,2]
[356345765,1742311846509,-485.82319032,8.999e-05,2]
[356345766,1742311846519,-500.0,8.999e-05,2]
[356345767,1742311846529,-500.0,8.999e-05,2]
[356345768,1742311846538,-500.0,8.999e-05,2]
[356345769,1742311846548,-500.0,8.999e-05,2]
[356345770,1742311846557,-500.0,8.999e-05,2]
[356345771,1742311846567,-506.87914936,8.999e-05,2]
[356345772,1742311846576,-611.95,8.999e-05,2]
[356345773,1742311846587,-511.15530106,8.999e-05,2]
[356345774,1742311846596,-500.0,8.999e-05,2]
[356345776,1742311846607,-500.0,8.999e-05,2]
[356345778,1742311846617,-500.0,8.999e-05,2]
[356345781,1742311846627,-500.0,8.999e-05,2]
[356345783,1742311846637,-500.0,8.999e-05,2]
[356345785,1742311846646,-501.1,8.999e-05,2]
[356345787,1742311846656,-500.0,8.999e-05,2]
[356345789,1742311846665,-500.0,8.999e-05,2]
[356345791,1742311846678,-500.0,8.999e-05,2]
[356345792,1742311846688,-500.0,8.999e-05,2]
[356345793,1742311846699,-500.0,8.999e-05,2]
[356345794,1742311846708,-379.46144295,8.999e-05,2]
[356345795,1742311846718,-568.80084835,8.999e-05,2]
[356345796,1742311846727,-500.0,8.999e-05,2]
[356345797,1742311846737,-500.0,8.999e-05,2]
[356345798,1742311846747,-500.0,8.999e-05,2]
[356345799,1742311846756,-500.0,8.999e-05,2]
[356345800,1742311846766,-500.0,8.999e-05,2]
[356345801,1742311846775,-527.46692224,8.999e-05,2]
[356345802,1742311846785,-258.85228719,8.999e-05,2]
[356345803,1742311846795,-188.83664119,8.999e-05,2]
[356345804,1742311846805,-500.0,8.999e-05,2]
[356345805,1742311846816,-500.0,8.999e-05,2]
[356345806,1742311846826,-500.0,8.999e-05,2]
[356345807,1742311846835,-205.29725151,8.999e-05,2]
[356345808,1742311846845,-500.0,8.999e-05,2]
[356345809,1742311846855,-473.40425042,8.999e-05,2]
[356345810,1742311846865,-500.0,8.999e-05,2]
[356345811,1742311846874,-500.0,8.999e-05,2]
[356345812,1742311846883,-500.0,8.999e-05,2]
[356345813,1742311846893,-500.0,8.999e-05,2]
[356345814,1742311846902,-500.0,8.999e-05,2]
[356345815,1742311846911,-500.0,8.999e-05,2]
[356345816,1742311846921,-500.0,8.999e-05,2]
[356345817,1742311846931,-500.0,8.999e-05,2]
[356345818,1742311846940,-500.0,8.999e-05,2]
[356345819,1742311846948,-500.0,8.999e-05,2]
[356345820,1742311846957,-500.0,8.999e-05,2]
[356345821,1742311846967,-500.0,8.999e-05,2]
[356345822,1742311846976,-500.0,8.999e-05,2]
[356345823,1742311846986,-500.0,8.999e-05,2]
[356345824,1742311846996,-500.0,8.999e-05,2]
[356345825,1742311847006,-600.57383775,8.999e-05,2]
[356345826,1742311847016,-623.35,8.999e-05,2]
[356345827,1742311847026,-158.15205041,8.999e-05,2]
[356345828,1742311847173,-1000.0,8.999e-05,2]
[356345829,1742311847184,-500.0,8.999e-05,2]
[356345830,1742311847195,-500.0,8.999e-05,2]
[356345831,1742311847206,-500.0,8.999e-05,2]
[356345832,1742311847217,-500.0,8.999e-05,2]
[356345833,1742311847227,-500.0,8.999e-05,2]
[356345834,1742311847238,-500.0,8.999e-05,2]
[356345835,1742311847248,-1132.33,8.999e-05,2]
[356345836,1742311847258,-500.0,8.999e-05,2]
[356345837,1742311847268,-500.0,8.999e-05,2]
[356345838,1742311847279,-500.0,8.999e-05,2]
[356345839,1742311847290,-500.0,8.999e-05,2]
[356345840,1742311847299,-500.0,8.999e-05,2]
[356345841,1742311847310,-500.0,8.999e-05,2]
[356345842,1742311847320,-525.86161135,8.999e-05,2]
[356345843,1742311847329,-500.0,8.999e-05,2]
[356345844,1742311847340,-500.0,8.999e-05,2]
[356345845,1742311847350,-629.94,8.999e-05,2]
[356345846,1742311847360,-500.0,8.999e-05,2]
[356345847,1742311847370,-500.0,8.999e-05,2]
[356345848,1742311847380,-612.11,8.999e-05,2]
[356345849,1742311847390,-500.0,8.999e-05,2]
[356345850,1742311847400,-500.0,8.999e-05,2]
[356345851,1742311847411,-500.0,8.999e-05,2]
[356345852,1742311847421,-500.0,8.999e-05,2]
[356345853,1742311847433,-500.0,8.999e-05,2]
[356345854,1742311847443,-500.0,8.999e-05,2]
[356345855,1742311847453,-500.0,8.999e-05,2]
[356345856,1742311847463,-500.0,8.999e-05,2]
[356345857,1742311847474,-500.0,8.999e-05,2]
[356345858,1742311847486,-500.0,8.999e-05,2]
[356345859,1742311847498,-501.5,8.999e-05,2]
[356345860,1742311847509,-500.0,8.999e-05,2]
[356345861,1742311847520,-585.42630444,8.999e-05,2]
[356345862,1742311847530,-500.0,8.999e-05,2]
[356345863,1742311847540,-589.81,8.999e-05,2]
[356345864,1742311847551,-500.0,8.999e-05,2]
[356345865,1742311847561,-500.0,8.999e-05,2]
[356345866,1742311847571,-500.0,8.999e-05,2]
[356345867,1742311847581,-10000.0,9e-05,2]
[356345868,1742311847591,-255.7,9e-05,2]
[356345869,1742311847601,-420.0,9.04e-05,2]
[356345870,1742311847611,-500.0,9.041e-05,2]
[356345871,1742311847621,-500.0,9.041e-05,2]
[356345872,1742311847631,-500.0,9.041e-05,2]
[356345873,1742311847641,-500.0,9.041e-05,2]
[356345874,1742311847651,-622.2,9.049e-05,2]
[356345875,1742311847660,-645.2214,9.104e-05,2]
[356345876,1742311847670,-669.0945918,9.159e-05,2]
[356345877,1742311847683,-500.0,9.163e-05,2]
[356345878,1742311847693,-500.0,9.172e-05,2]
[356345879,1742311847703,-500.0,9.172e-05,2]
[356345880,1742311847713,-500.0,9.172e-05,2]
[356345881,1742311847724,-500.0,9.172e-05,2]
[356345882,1742311847733,-164.49,9.173e-05,2]
[356345883,1742311847744,-659.57,9.173e-05,2]
[356345884,1742311847754,-326.63415165,9.173e-05,2]
[356345885,1742311847764,-617.35,9.173e-05,2]
[356345886,1742311847775,-219.45,9.173e-05,2]
[356345887,1742311847784,-500.0,9.173e-05,2]
[356345888,1742311847794,-500.0,9.173e-05,2]
[356345889,1742311847804,-163.4,9.173e-05,2]
[356345890,1742311847814,-280.86,9.173e-05,2]
[356345891,1742311847824,-656.44,9.173e-05,2]
[356345892,1742311847834,-493.17446512,9.174e-05,2]
[356345893,1742311847844,-693.8510917,9.214e-05,2]
[356345894,1742311847854,-1194.86921323,9.269e-05,2]
[356345895,1742311847864,-500.0,9.272e-05,2]
[356345896,1742311847873,-500.0,9.272e-05,2]
[356345897,1742311847883,-500.0,9.272e-05,2]
[356345898,1742311847894,-500.0,9.272e-05,2]
[356345899,1742311847903,-500.0,9.272e-05,2]
[356345900,1742311847913,-177.19,9.272e-05,2]
[356345901,1742311847923,-500.0,9.272e-05,2]
[356345902,1742311847934,-500.0,9.272e-05,2]
[356345903,1742311847944,-500.0,9.272e-05,2]
[356345904,1742311847954,-500.0,9.272e-05,2]
[356345905,1742311847964,-500.0,9.272e-05,2]
[356345906,1742311847973,-5355.73,9.272e-05,2]
[356345907,1742311847984,-500.0,9.272e-05,2]
[356345908,1742311847994,-500.0,9.272e-05,2]
[356345909,1742311848004,-500.0,9.272e-05,2]
[356345910,1742311848014,-500.0,9.273e-05,2]
[356345911,1742311848023,-500.0,9.273e-05,2]
[356345912,1742311848034,-163.44,9.273e-05,2]
[356345913,1742311848045,-199.3,9.273e-05,2]
[356345914,1742311848057,-500.0,9.273e-05,2]
[356345915,1742311848067,-306.04019065,9.273e-05,2]
[356345916,1742311848077,-366.66,9.273e-05,2]
[356345917,1742311848088,-520.74,9.273e-05,2]
[356345918,1742311848099,-500.0,9.273e-05,2]
[356345919,1742311848109,-500.0,9.273e-05,2]
[356345920,1742311848119,-500.0,9.273e-05,2]
[356345921,1742311848130,-500.0,9.273e-05,2]
[356345922,1742311848141,-500.0,9.273e-05,2]
[356345923,1742311848151,-500.0,9.273e-05,2]
[356345924,1742311848162,-201.4,9.273e-05,2]
[356345925,1742311848172,-500.0,9.273e-05,2]
[356345926,1742311848183,-452.68,9.273e-05,2]
[356345927,1742311848194,-1132.33,9.273e-05,2]
[356345928,1742311848205,-500.0,9.273e-05,2]
[356345929,1742311848216,-500.0,9.273e-05,2]
[356345930,1742311848226,-500.0,9.273e-05,2]
[356345931,1742311848237,-500.0,9.273e-05,2]
[356345932,1742311848248,-500.0,9.273e-05,2]
[356345933,1742311848258,-500.0,9.315e-05,2]
[356345934,1742311848268,-425.67,9.315e-05,2]
[356345935,1742311848279,-500.0,9.315e-05,2]
[356345936,1742311848290,-500.0,9.315e-05,2]
[356345937,1742311848300,-500.0,9.446e-05,2]
[356345938,1742311848309,-500.0,9.446e-05,2]
[356345939,1742311848320,-500.0,9.446e-05,2]
[356345940,1742311848330,-659.57,9.447e-05,2]
[356345941,1742311848340,-617.35,9.447e-05,2]
[356345942,1742311848351,-656.44,9.447e-05,2]
[356345943,1742311848362,-500.0,9.546e-05,2]
[356345944,1742311848373,-500.0,9.546e-05,2]
[356345945,1742311848383,-500.0,9.546e-05,2]
[356345946,1742311848394,-156.54,9.546e-05,2]
[356345947,1742311848404,-5355.73,9.546e-05,2]
[356345948,1742311848414,-500.0,9.546e-05,2]
[356345949,1742311848425,-500.0,9.546e-05,2]
[356345950,1742311848435,-500.0,9.547e-05,2]
[356345951,1742311848445,-500.0,9.547e-05,2]
[356345952,1742311848458,-500.0,9.547e-05,2]
[356345953,1742311848468,-500.0,9.547e-05,2]
[356345954,1742311848479,-1132.33,9.547e-05,2]
[356345955,1742311848488,-500.0,9.547e-05,2]
[356345956,1742311848499,-500.0,9.589e-05,2]
[356345957,1742311848509,-500.0,9.589e-05,2]
[356345958,1742311848519,-500.0,9.589e-05,2]
[356345959,1742311848529,-1300.0,9.617e-05,2]
[356345960,1742311848538,-500.0,9.72e-05,2]